[Event "Early-Titled-Tuesday-Blitz-September-05-2023"]
[Site "Chess.com"]
[Date "2023.09.05"]
[Round "5"]
[White "amylazy"]
[Black "GianmarcoVaR"]
[Result "1-0"]
[WhiteElo "2457"]
[BlackElo "2623"]
[TimeControl "180+1"]
[EndTime "8:53:57 PDT"]
[Termination "amylazy won by resignation"]

1. d4 {[%clk 0:02:58.5]} 1... g6 {[%clk 0:02:59.3]} 2. Nf3 {[%clk 0:02:57.9]}
2... Bg7 {[%clk 0:02:59.9]} 3. g3 {[%clk 0:02:56.6]} 3... d6 {[%clk 0:03:00.5]}
4. Bg2 {[%clk 0:02:56.4]} 4... h5 {[%clk 0:03:01.1]} 5. h3 {[%clk 0:02:52.2]}
5... Nc6 {[%clk 0:03:00.6]} 6. c4 {[%clk 0:02:41.1]} 6... Bd7 {[%clk 0:03:01]}
7. Nc3 {[%clk 0:02:40.4]} 7... Nf6 {[%clk 0:03:00.5]} 8. Bg5 {[%clk 0:02:35.7]}
8... Qc8 {[%clk 0:02:59.9]} 9. Qd2 {[%clk 0:02:10.4]} 9... Bf5 {[%clk
0:02:56.4]} 10. d5 {[%clk 0:01:57.8]} 10... Nb4 {[%clk 0:02:51.6]} 11. Nd4
{[%clk 0:01:49.7]} 11... Bd7 {[%clk 0:02:50.2]} 12. a3 {[%clk 0:01:43.3]} 12...
Na6 {[%clk 0:02:50]} 13. b4 {[%clk 0:01:38.1]} 13... Rb8 {[%clk 0:02:48.6]} 14.
Rc1 {[%clk 0:01:34.1]} 14... c5 {[%clk 0:02:48.3]} 15. dxc6 {[%clk 0:01:30.3]}
15... bxc6 {[%clk 0:02:49.2]} 16. Qe3 {[%clk 0:00:44.3]} 16... c5 {[%clk
0:02:42.4]} 17. Ndb5 {[%clk 0:00:43.1]} 17... O-O {[%clk 0:02:34.3]} 18. O-O
{[%clk 0:00:30.2]} 18... Bxh3 {[%clk 0:02:28.3]} 19. Nxa7 {[%clk 0:00:29.9]}
19... Qd7 {[%clk 0:02:24.6]} 20. Bxf6 {[%clk 0:00:24.8]} 20... Bxf6 {[%clk
0:02:23.3]} 21. Bxh3 {[%clk 0:00:24.9]} 21... Qxh3 {[%clk 0:02:21.4]} 22. b5
{[%clk 0:00:24.8]} 22... Bg7 {[%clk 0:02:17.4]} 23. bxa6 {[%clk 0:00:22.2]}
23... Bd4 {[%clk 0:02:16.1]} 24. Qf3 {[%clk 0:00:21.5]} 24... h4 {[%clk
0:02:10.3]} 25. e3 {[%clk 0:00:13.9]} 25... hxg3 {[%clk 0:02:09.4]} 26. Qxg3
{[%clk 0:00:07.9]} 26... Qxg3+ {[%clk 0:02:09]} 27. fxg3 {[%clk 0:00:08.8]}
27... Bxe3+ {[%clk 0:02:09.7]} 28. Kg2 {[%clk 0:00:09.7]} 28... Bxc1 {[%clk
0:02:10]} 29. Rxc1 {[%clk 0:00:10.6]} 29... Rb6 {[%clk 0:02:10.1]} 30. Nd5
{[%clk 0:00:08.9]} 30... Rxa6 {[%clk 0:02:07.8]} 31. Nxe7+ {[%clk 0:00:08.1]}
31... Kg7 {[%clk 0:02:08]} 32. Nb5 {[%clk 0:00:09]} 32... Re8 {[%clk 0:01:52.7]}
33. Nd5 {[%clk 0:00:08.7]} 33... Re2+ {[%clk 0:01:53.4]} 34. Kf3 {[%clk
0:00:08.6]} 34... Rb2 {[%clk 0:01:54.3]} 35. Re1 {[%clk 0:00:07.6]} 35... Rc2
{[%clk 0:01:51.1]} 36. Ne3 {[%clk 0:00:06.8]} 36... Rd2 {[%clk 0:01:45]} 37. Rd1
{[%clk 0:00:06.1]} 37... Rxd1 {[%clk 0:01:37.8]} 38. Nxd1 {[%clk 0:00:07]} 38...
f5 {[%clk 0:01:33.9]} 39. Ndc3 {[%clk 0:00:05.4]} 39... Kf6 {[%clk 0:01:32.9]}
40. Nd5+ {[%clk 0:00:04.1]} 40... Ke5 {[%clk 0:01:32.8]} 41. Ne7 {[%clk
0:00:02.3]} 41... g5 {[%clk 0:01:30.4]} 42. Ng6+ {[%clk 0:00:01.9]} 42... Kf6
{[%clk 0:01:30.3]} 43. Nf8 {[%clk 0:00:02.3]} 43... Ra7 {[%clk 0:01:25.6]} 44.
Nxa7 {[%clk 0:00:01.4]} 44... Ke5 {[%clk 0:01:26.1]} 45. Nb5 {[%clk 0:00:01.9]}
45... d5 {[%clk 0:01:26.4]} 46. Ng6+ {[%clk 0:00:02]} 46... Kf6 {[%clk
0:01:26.1]} 47. cxd5 {[%clk 0:00:02.9]} 47... Kxg6 {[%clk 0:01:26.5]} 48. d6
{[%clk 0:00:03.8]} 48... Kf6 {[%clk 0:01:26.9]} 49. a4 {[%clk 0:00:04.3]} 49...
Ke6 {[%clk 0:01:25.8]} 50. a5 {[%clk 0:00:05.2]} 50... Kd5 {[%clk 0:01:22.7]}
51. a6 {[%clk 0:00:06.1]} 51... Kc6 {[%clk 0:01:23.6]} 52. a7 {[%clk 0:00:05.9]}
52... Kb7 {[%clk 0:01:24.5]} 53. d7 {[%clk 0:00:05.9]} 1-0

[Event "Early-Titled-Tuesday-Blitz-September-05-2023"]
[Site "Chess.com"]
[Date "2023.09.05"]
[Round "5"]
[White "Rsnr"]
[Black "Goryachkina"]
[Result "1-0"]
[WhiteElo "2913"]
[BlackElo "2663"]
[TimeControl "180+1"]
[EndTime "8:53:58 PDT"]
[Termination "Rsnr won on time"]

1. d4 {[%clk 0:03:00]} 1... d5 {[%clk 0:02:58.3]} 2. c4 {[%clk 0:03:00.3]} 2...
c6 {[%clk 0:02:58.1]} 3. Nf3 {[%clk 0:03:00.3]} 3... Nf6 {[%clk 0:02:58]} 4. Nc3
{[%clk 0:03:00.6]} 4... dxc4 {[%clk 0:02:55.9]} 5. a4 {[%clk 0:03:00.3]} 5...
Bf5 {[%clk 0:02:53.5]} 6. Nh4 {[%clk 0:02:59.9]} 6... Bg6 {[%clk 0:02:51.4]} 7.
Nxg6 {[%clk 0:02:58.8]} 7... hxg6 {[%clk 0:02:51.4]} 8. e4 {[%clk 0:02:59.2]}
8... e5 {[%clk 0:02:49.3]} 9. Bxc4 {[%clk 0:02:57.4]} 9... exd4 {[%clk
0:02:26.8]} 10. e5 {[%clk 0:02:56.6]} 10... Bb4 {[%clk 0:02:00.7]} 11. Qb3
{[%clk 0:02:22.8]} 11... Nd5 {[%clk 0:01:19.1]} 12. Bxd5 {[%clk 0:02:21.4]}
12... Qxd5 {[%clk 0:01:17.4]} 13. Qxb4 {[%clk 0:02:20.4]} 13... dxc3 {[%clk
0:01:15.8]} 14. Qxb7 {[%clk 0:01:43.6]} 14... Qxg2 {[%clk 0:01:02.4]} 15. Rf1
{[%clk 0:01:22.6]} 15... O-O {[%clk 0:00:54]} 16. bxc3 {[%clk 0:01:16.2]} 16...
Nd7 {[%clk 0:00:30.6]} 17. Qxd7 {[%clk 0:01:15.2]} 17... Rad8 {[%clk 0:00:26.3]}
18. Qxa7 {[%clk 0:01:11.5]} 18... Rd3 {[%clk 0:00:18.5]} 19. Be3 {[%clk
0:01:09.3]} 19... Rfd8 {[%clk 0:00:17.7]} 20. Ke2 {[%clk 0:00:40.3]} 20... Qg4+
{[%clk 0:00:16.4]} 21. f3 {[%clk 0:00:40.5]} 21... Qc4 {[%clk 0:00:12.6]} 22.
Kf2 {[%clk 0:00:40.3]} 22... Qxc3 {[%clk 0:00:07.5]} 23. Rae1 {[%clk 0:00:32.6]}
23... Qxe5 {[%clk 0:00:04.2]} 24. Kg1 {[%clk 0:00:32.6]} 24... Qf5 {[%clk
0:00:03.1]} 25. Qc5 {[%clk 0:00:22.7]} 1-0

[Event "Early-Titled-Tuesday-Blitz-September-05-2023"]
[Site "Chess.com"]
[Date "2023.09.05"]
[Round "5"]
[White "JaloliddinIlkhomi"]
[Black "Quattroporte300"]
[Result "1-0"]
[WhiteElo "2571"]
[BlackElo "2409"]
[TimeControl "180+1"]
[EndTime "8:53:58 PDT"]
[Termination "JaloliddinIlkhomi won by resignation"]

1. Nf3 {[%clk 0:03:00.9]} 1... c5 {[%clk 0:02:56]} 2. c3 {[%clk 0:03:00.3]} 2...
Nc6 {[%clk 0:02:54.1]} 3. d4 {[%clk 0:03:00.5]} 3... e6 {[%clk 0:02:53.7]} 4.
Bf4 {[%clk 0:03:00.1]} 4... Qb6 {[%clk 0:02:52.2]} 5. Qb3 {[%clk 0:02:54]} 5...
cxd4 {[%clk 0:02:44]} 6. Qxb6 {[%clk 0:02:52.7]} 6... axb6 {[%clk 0:02:43.4]} 7.
Nxd4 {[%clk 0:02:52.8]} 7... Nxd4 {[%clk 0:02:38.3]} 8. cxd4 {[%clk 0:02:53.7]}
8... Nf6 {[%clk 0:02:38.5]} 9. Nd2 {[%clk 0:02:52.7]} 9... Bb4 {[%clk
0:02:36.6]} 10. Kd1 {[%clk 0:02:53]} 10... d5 {[%clk 0:02:25.1]} 11. e3 {[%clk
0:02:53]} 11... Bd7 {[%clk 0:02:05.4]} 12. f3 {[%clk 0:02:50.5]} 12... Ke7
{[%clk 0:02:00.9]} 13. Bd3 {[%clk 0:02:49.8]} 13... Rhc8 {[%clk 0:02:00.8]} 14.
a3 {[%clk 0:02:48.4]} 14... Bd6 {[%clk 0:01:58.4]} 15. Bxd6+ {[%clk 0:02:47.2]}
15... Kxd6 {[%clk 0:01:58.4]} 16. Ke2 {[%clk 0:02:47.8]} 16... Ba4 {[%clk
0:01:46]} 17. Rac1 {[%clk 0:02:47.2]} 17... Nd7 {[%clk 0:01:36.8]} 18. e4 {[%clk
0:02:46]} 18... g6 {[%clk 0:01:31.3]} 19. e5+ {[%clk 0:02:44.4]} 19... Ke7
{[%clk 0:01:30.6]} 20. f4 {[%clk 0:02:43.2]} 20... Bc6 {[%clk 0:01:23.3]} 21.
Nf3 {[%clk 0:02:42.6]} 21... b5 {[%clk 0:01:21.4]} 22. h4 {[%clk 0:02:41.2]}
22... h5 {[%clk 0:01:20.5]} 23. Rc2 {[%clk 0:02:35.8]} 23... Nb6 {[%clk
0:01:19.1]} 24. Rhc1 {[%clk 0:02:35.6]} 24... Nc4 {[%clk 0:01:19.1]} 25. Bxc4
{[%clk 0:02:35.1]} 25... bxc4 {[%clk 0:01:19]} 26. Rc3 {[%clk 0:02:27.6]} 26...
b5 {[%clk 0:01:16.6]} 27. Nh2 {[%clk 0:02:25.6]} 27... Rcb8 {[%clk 0:01:12.8]}
28. g4 {[%clk 0:02:25.6]} 28... hxg4 {[%clk 0:01:05.3]} 29. Nxg4 {[%clk
0:02:24.4]} 29... b4 {[%clk 0:01:05.5]} 30. axb4 {[%clk 0:02:24.1]} 30... Rxb4
{[%clk 0:01:06]} 31. R1c2 {[%clk 0:02:23.4]} 31... Ra2 {[%clk 0:00:57.6]} 32.
Nf6 {[%clk 0:02:20.1]} 32... Rbxb2 {[%clk 0:00:57.6]} 33. Rxb2 {[%clk
0:02:17.8]} 33... Rxb2+ {[%clk 0:00:58.1]} 34. Ke3 {[%clk 0:02:18.1]} 34... Rh2
{[%clk 0:00:48.4]} 35. Rc1 {[%clk 0:02:14.3]} 35... Rxh4 {[%clk 0:00:42]} 36.
Ra1 {[%clk 0:02:14.2]} 36... Rh3+ {[%clk 0:00:42.4]} 37. Ke2 {[%clk 0:02:13]}
37... c3 {[%clk 0:00:38.4]} 38. Ra7+ {[%clk 0:02:12.8]} 38... Kd8 {[%clk
0:00:38.6]} 39. Ra1 {[%clk 0:02:04.3]} 39... Bb5+ {[%clk 0:00:37.4]} 40. Kf2
{[%clk 0:02:02.7]} 40... Rd3 {[%clk 0:00:32.7]} 41. Rc1 {[%clk 0:02:02.9]} 41...
Kc7 {[%clk 0:00:27.2]} 42. Ng4 {[%clk 0:02:00.6]} 42... Kb6 {[%clk 0:00:26.6]}
43. Ne3 {[%clk 0:02:00.4]} 43... Rxd4 {[%clk 0:00:22.5]} 44. Rxc3 {[%clk
0:02:00.2]} 44... Rxf4+ {[%clk 0:00:23.1]} 45. Kg3 {[%clk 0:02:00.6]} 45... Re4
{[%clk 0:00:12.9]} 46. Ng4 {[%clk 0:02:00.2]} 46... Be2 {[%clk 0:00:11.2]} 47.
Nf6 {[%clk 0:01:59.1]} 47... Rc4 {[%clk 0:00:09.5]} 48. Rb3+ {[%clk 0:01:58.2]}
48... Kc5 {[%clk 0:00:09.4]} 49. Rb7 {[%clk 0:01:58]} 49... d4 {[%clk
0:00:08.7]} 50. Rd7 {[%clk 0:01:58.4]} 50... d3 {[%clk 0:00:08.4]} 51. Kf2
{[%clk 0:01:59.1]} 51... Rd4 {[%clk 0:00:07.7]} 52. Rc7+ {[%clk 0:01:58.1]}
52... Kb6 {[%clk 0:00:07.9]} 53. Rc1 {[%clk 0:01:54.1]} 53... d2 {[%clk
0:00:07.9]} 54. Rb1+ {[%clk 0:01:54.7]} 54... Kc5 {[%clk 0:00:07.4]} 55. Kxe2
{[%clk 0:01:55.1]} 55... Kc4 {[%clk 0:00:04]} 56. Rd1 {[%clk 0:01:54.6]} 56...
Kc3 {[%clk 0:00:04.3]} 57. Ke3 {[%clk 0:01:52.9]} 57... Rh4 {[%clk 0:00:03.3]}
58. Ne4+ {[%clk 0:01:52.4]} 58... Kc2 {[%clk 0:00:03.2]} 59. Rxd2+ {[%clk
0:01:52.9]} 59... Kc1 {[%clk 0:00:03.9]} 60. Rf2 {[%clk 0:01:53.5]} 60... Rh5
{[%clk 0:00:02.3]} 61. Kd4 {[%clk 0:01:52.8]} 61... Rf5 {[%clk 0:00:02.6]} 62.
Rxf5 {[%clk 0:01:53.2]} 62... exf5 {[%clk 0:00:03.1]} 63. Ng5 {[%clk 0:01:54.1]}
63... Kd2 {[%clk 0:00:03.1]} 64. Nxf7 {[%clk 0:01:54.6]} 64... f4 {[%clk
0:00:03]} 65. Ng5 {[%clk 0:01:54.8]} 1-0

[Event "Early-Titled-Tuesday-Blitz-September-05-2023"]
[Site "Chess.com"]
[Date "2023.09.05"]
[Round "5"]
[White "Actuary44"]
[Black "esrosenberg"]
[Result "1-0"]
[WhiteElo "2539"]
[BlackElo "2395"]
[TimeControl "180+1"]
[EndTime "8:53:59 PDT"]
[Termination "Actuary44 won by resignation"]

1. e4 {[%clk 0:03:00.9]} 1... c6 {[%clk 0:02:57.9]} 2. d4 {[%clk 0:03:01]} 2...
d5 {[%clk 0:02:58.4]} 3. Nc3 {[%clk 0:03:01.9]} 3... dxe4 {[%clk 0:02:59.2]} 4.
Nxe4 {[%clk 0:03:02.8]} 4... Bf5 {[%clk 0:02:59.3]} 5. Ng3 {[%clk 0:03:02.9]}
5... Bg6 {[%clk 0:03:00.2]} 6. h4 {[%clk 0:03:03.7]} 6... h6 {[%clk 0:03:00.9]}
7. Nh3 {[%clk 0:03:04.4]} 7... e6 {[%clk 0:02:59.8]} 8. Nf4 {[%clk 0:03:04.9]}
8... Bh7 {[%clk 0:03:00.7]} 9. Bd3 {[%clk 0:03:05.4]} 9... Bxd3 {[%clk
0:02:58.9]} 10. Qxd3 {[%clk 0:03:06.3]} 10... Nf6 {[%clk 0:02:59.8]} 11. Bd2
{[%clk 0:03:06.5]} 11... Nd5 {[%clk 0:03:00.7]} 12. O-O-O {[%clk 0:03:04.7]}
12... Nxf4 {[%clk 0:03:01]} 13. Bxf4 {[%clk 0:03:05.5]} 13... Bd6 {[%clk
0:03:01.8]} 14. Bxd6 {[%clk 0:03:03.1]} 14... Qxd6 {[%clk 0:03:02.2]} 15. Nh5
{[%clk 0:03:01.5]} 15... O-O {[%clk 0:03:00.7]} 16. g4 {[%clk 0:02:56.7]} 16...
Nd7 {[%clk 0:02:54.7]} 17. g5 {[%clk 0:02:55.9]} 17... g6 {[%clk 0:02:52.5]} 18.
Ng3 {[%clk 0:02:39.2]} 18... h5 {[%clk 0:02:50.6]} 19. Ne4 {[%clk 0:02:35.5]}
19... Qd5 {[%clk 0:02:49]} 20. Kb1 {[%clk 0:02:34.5]} 20... Kg7 {[%clk
0:02:45.4]} 21. Qe3 {[%clk 0:02:30.7]} 21... a5 {[%clk 0:02:35]} 22. Rh3 {[%clk
0:02:27.5]} 22... a4 {[%clk 0:02:34.7]} 23. Rf3 {[%clk 0:02:25.3]} 23... a3
{[%clk 0:02:27.4]} 24. b3 {[%clk 0:02:24.5]} 24... b5 {[%clk 0:02:21]} 25. c3
{[%clk 0:02:09.1]} 25... c5 {[%clk 0:02:14.8]} 26. Nf6 {[%clk 0:01:10.6]} 26...
Nxf6 {[%clk 0:02:11.7]} 27. gxf6+ {[%clk 0:01:11.5]} 27... Kh7 {[%clk 0:02:12]}
28. Rg3 {[%clk 0:01:11.7]} 28... Qf5+ {[%clk 0:02:09.1]} 29. Ka1 {[%clk
0:01:09.3]} 29... Qxf6 {[%clk 0:02:09.3]} 30. dxc5 {[%clk 0:01:05.2]} 30... b4
{[%clk 0:02:09.2]} 31. Qd4 {[%clk 0:00:53.9]} 31... Qxd4 {[%clk 0:02:02.6]} 32.
Rxd4 {[%clk 0:00:53.9]} 32... bxc3 {[%clk 0:02:02.1]} 33. Rxc3 {[%clk
0:00:54.3]} 33... Rfb8 {[%clk 0:01:43.2]} 34. b4 {[%clk 0:00:48.9]} 34... Rb5
{[%clk 0:01:38.3]} 35. c6 {[%clk 0:00:41.4]} 35... Kg7 {[%clk 0:01:36.3]} 36. c7
{[%clk 0:00:39]} 36... Rc8 {[%clk 0:01:26.5]} 37. Rd8 {[%clk 0:00:38.3]} 37...
Rd5 {[%clk 0:01:26.4]} 38. Rxd5 {[%clk 0:00:33.9]} 38... exd5 {[%clk 0:01:24.9]}
39. b5 {[%clk 0:00:34.4]} 39... d4 {[%clk 0:01:25.1]} 40. Rc4 {[%clk 0:00:28.5]}
40... d3 {[%clk 0:01:24.8]} 41. b6 {[%clk 0:00:27.9]} 41... d2 {[%clk
0:01:23.7]} 42. Rd4 {[%clk 0:00:27.8]} 42... Re8 {[%clk 0:01:20.3]} 43. Kb1
{[%clk 0:00:27.8]} 1-0

[Event "Early-Titled-Tuesday-Blitz-September-05-2023"]
[Site "Chess.com"]
[Date "2023.09.05"]
[Round "5"]
[White "GasconJR"]
[Black "hongnhung1234"]
[Result "1-0"]
[WhiteElo "2710"]
[BlackElo "2536"]
[TimeControl "180+1"]
[EndTime "8:54:00 PDT"]
[Termination "GasconJR won by checkmate"]

1. Nf3 {[%clk 0:03:00.9]} 1... f5 {[%clk 0:02:58.2]} 2. d3 {[%clk 0:02:59.2]}
2... d6 {[%clk 0:02:55.4]} 3. e4 {[%clk 0:02:58.5]} 3... e5 {[%clk 0:02:52.5]}
4. Nc3 {[%clk 0:02:46.5]} 4... Nf6 {[%clk 0:02:51.2]} 5. exf5 {[%clk 0:02:46.8]}
5... Bxf5 {[%clk 0:02:50.3]} 6. d4 {[%clk 0:02:47.5]} 6... exd4 {[%clk
0:02:20.4]} 7. Nxd4 {[%clk 0:02:47]} 7... Qd7 {[%clk 0:01:59.4]} 8. Nxf5 {[%clk
0:02:39.6]} 8... Qxf5 {[%clk 0:02:00.3]} 9. Bd3 {[%clk 0:02:38.5]} 9... Qe6+
{[%clk 0:01:58.2]} 10. Be3 {[%clk 0:02:37.9]} 10... Nc6 {[%clk 0:01:53]} 11. Qf3
{[%clk 0:02:21.3]} 11... g6 {[%clk 0:01:35]} 12. Bb5 {[%clk 0:02:06.6]} 12... d5
{[%clk 0:01:26.7]} 13. O-O-O {[%clk 0:01:48.7]} 13... O-O-O {[%clk 0:01:25.4]}
14. Rhe1 {[%clk 0:01:43.9]} 14... Ne4 {[%clk 0:01:09.5]} 15. Nxe4 {[%clk
0:01:27.1]} 15... dxe4 {[%clk 0:01:10.4]} 16. Rxd8+ {[%clk 0:01:17.6]} 16...
Nxd8 {[%clk 0:01:11.3]} 17. Qd1 {[%clk 0:00:28.1]} 17... c6 {[%clk 0:01:01.2]}
18. Qd4 {[%clk 0:00:28]} 18... Qxa2 {[%clk 0:00:43.2]} 19. Rd1 {[%clk
0:00:06.9]} 19... Qa1+ {[%clk 0:00:14.1]} 20. Kd2 {[%clk 0:00:07.3]} 20... Qa5+
{[%clk 0:00:14.7]} 21. Kc1 {[%clk 0:00:07.9]} 21... Bb4 {[%clk 0:00:08.8]} 22.
Qd7+ {[%clk 0:00:07.2]} 22... Kb8 {[%clk 0:00:08.6]} 23. Bf4+ {[%clk 0:00:07.9]}
23... Ka8 {[%clk 0:00:07.4]} 24. Qc8# {[%clk 0:00:08.3]} 1-0

[Event "Early-Titled-Tuesday-Blitz-September-05-2023"]
[Site "Chess.com"]
[Date "2023.09.05"]
[Round "5"]
[White "falzehope0"]
[Black "Doudou2015"]
[Result "1-0"]
[WhiteElo "2452"]
[BlackElo "2160"]
[TimeControl "180+1"]
[EndTime "8:54:04 PDT"]
[Termination "falzehope0 won on time"]

1. d4 {[%clk 0:03:00.9]} 1... d5 {[%clk 0:03:00.1]} 2. e3 {[%clk 0:02:59.9]}
2... Nf6 {[%clk 0:02:58]} 3. Bd3 {[%clk 0:02:59.6]} 3... Bg4 {[%clk 0:02:55.5]}
4. Ne2 {[%clk 0:02:57.8]} 4... e6 {[%clk 0:02:54.5]} 5. O-O {[%clk 0:02:57.4]}
5... Be7 {[%clk 0:02:50.6]} 6. Nd2 {[%clk 0:02:55.4]} 6... Nbd7 {[%clk
0:02:49.3]} 7. f4 {[%clk 0:02:55.1]} 7... Bh5 {[%clk 0:02:39.9]} 8. Nf3 {[%clk
0:02:52.5]} 8... Ne4 {[%clk 0:02:38.3]} 9. c4 {[%clk 0:02:47.8]} 9... c6 {[%clk
0:02:35.9]} 10. Qc2 {[%clk 0:02:41.3]} 10... f5 {[%clk 0:02:34.9]} 11. c5 {[%clk
0:02:38]} 11... Bxf3 {[%clk 0:02:33.4]} 12. gxf3 {[%clk 0:02:37.6]} 12... Nef6
{[%clk 0:02:30.4]} 13. b4 {[%clk 0:02:37.3]} 13... O-O {[%clk 0:02:30.4]} 14. b5
{[%clk 0:02:37.2]} 14... Qe8 {[%clk 0:02:26.9]} 15. bxc6 {[%clk 0:02:37]} 15...
bxc6 {[%clk 0:02:27.8]} 16. Qa4 {[%clk 0:02:34.4]} 16... Rc8 {[%clk 0:02:07.6]}
17. Qxa7 {[%clk 0:02:28.8]} 17... Bd8 {[%clk 0:01:52.5]} 18. Ba6 {[%clk
0:02:19.5]} 18... Rc7 {[%clk 0:01:52.6]} 19. Qa8 {[%clk 0:02:14.2]} 19... Qh5
{[%clk 0:01:49.3]} 20. Bb7 {[%clk 0:02:07.3]} 20... Be7 {[%clk 0:01:42.6]} 21.
Qa6 {[%clk 0:02:06.4]} 21... Nb8 {[%clk 0:01:41.9]} 22. Qb6 {[%clk 0:02:02.1]}
22... Bd8 {[%clk 0:01:42.8]} 23. a4 {[%clk 0:01:51.9]} 23... Rff7 {[%clk
0:01:41.5]} 24. Ba8 {[%clk 0:01:44]} 24... Nbd7 {[%clk 0:01:32.5]} 25. Qb3
{[%clk 0:01:32.1]} 25... Ne8 {[%clk 0:01:12.9]} 26. a5 {[%clk 0:01:28]} 26...
Rf6 {[%clk 0:01:09.2]} 27. a6 {[%clk 0:01:21.2]} 27... Rh6 {[%clk 0:01:06.1]}
28. Rf2 {[%clk 0:01:20]} 28... Bh4 {[%clk 0:00:58.6]} 29. Rg2 {[%clk 0:01:01.4]}
29... Qxf3 {[%clk 0:00:55.1]} 30. Qd1 {[%clk 0:00:55.9]} 30... Rg6 {[%clk
0:00:50.7]} 31. Qf1 {[%clk 0:00:53.9]} 31... Rxg2+ {[%clk 0:00:23.4]} 32. Qxg2
{[%clk 0:00:51.8]} 32... Qxg2+ {[%clk 0:00:21.6]} 33. Kxg2 {[%clk 0:00:51.8]}
33... Be7 {[%clk 0:00:16]} 34. a7 {[%clk 0:00:50.3]} 34... Nxc5 {[%clk
0:00:06.9]} 35. Bxc6 {[%clk 0:00:44]} 1-0

[Event "Early-Titled-Tuesday-Blitz-September-05-2023"]
[Site "Chess.com"]
[Date "2023.09.05"]
[Round "5"]
[White "Vesper2018"]
[Black "Jahonas"]
[Result "1-0"]
[WhiteElo "2582"]
[BlackElo "2418"]
[TimeControl "180+1"]
[EndTime "8:54:05 PDT"]
[Termination "Vesper2018 won by resignation"]

1. e4 {[%clk 0:02:59.1]} 1... c6 {[%clk 0:03:00.2]} 2. d4 {[%clk 0:02:58.5]}
2... d5 {[%clk 0:03:00.5]} 3. e5 {[%clk 0:02:59]} 3... Bf5 {[%clk 0:03:00.2]} 4.
Nf3 {[%clk 0:02:59.1]} 4... e6 {[%clk 0:03:00.5]} 5. Be2 {[%clk 0:02:59.4]} 5...
Nd7 {[%clk 0:03:00.8]} 6. O-O {[%clk 0:02:59.3]} 6... Ne7 {[%clk 0:03:01]} 7.
Nh4 {[%clk 0:02:50.8]} 7... h6 {[%clk 0:02:56.3]} 8. Nxf5 {[%clk 0:02:50.5]}
8... Nxf5 {[%clk 0:02:55.8]} 9. c3 {[%clk 0:02:47.5]} 9... g5 {[%clk 0:02:54.1]}
10. a4 {[%clk 0:02:42.3]} 10... a5 {[%clk 0:02:53.3]} 11. Na3 {[%clk 0:02:38.7]}
11... Bg7 {[%clk 0:02:52.2]} 12. Nc2 {[%clk 0:02:38.8]} 12... O-O {[%clk
0:02:51.5]} 13. Bd3 {[%clk 0:02:37.9]} 13... Qe7 {[%clk 0:02:39.8]} 14. Bxf5
{[%clk 0:02:35.7]} 14... exf5 {[%clk 0:02:39.4]} 15. Ne3 {[%clk 0:02:36.3]}
15... f4 {[%clk 0:02:34]} 16. Nf5 {[%clk 0:02:35.5]} 16... Qe6 {[%clk
0:02:33.6]} 17. Nxg7 {[%clk 0:02:32.3]} 17... Kxg7 {[%clk 0:02:33.1]} 18. g3
{[%clk 0:02:20.8]} 18... fxg3 {[%clk 0:02:27.9]} 19. fxg3 {[%clk 0:02:20.1]}
19... f5 {[%clk 0:02:26.4]} 20. Be3 {[%clk 0:02:00.6]} 20... Rf7 {[%clk
0:02:25.3]} 21. Qd2 {[%clk 0:01:59.2]} 21... Nf8 {[%clk 0:02:22.6]} 22. Rf2
{[%clk 0:01:56.2]} 22... Ng6 {[%clk 0:02:22]} 23. Raf1 {[%clk 0:01:54.8]} 23...
Raf8 {[%clk 0:02:21.7]} 24. h4 {[%clk 0:01:47.6]} 24... f4 {[%clk 0:02:16.4]}
25. gxf4 {[%clk 0:01:45.9]} 25... gxf4 {[%clk 0:02:15.3]} 26. Bxf4 {[%clk
0:01:44.4]} 26... Qg4+ {[%clk 0:02:03.8]} 27. Rg2 {[%clk 0:01:41.8]} 27... Rxf4
{[%clk 0:01:55.4]} 28. Rxf4 {[%clk 0:01:37.2]} 28... Qxf4 {[%clk 0:01:53.4]} 29.
Qxf4 {[%clk 0:01:28.7]} 29... Rxf4 {[%clk 0:01:49.2]} 30. h5 {[%clk 0:01:29.1]}
30... Rf5 {[%clk 0:01:15.7]} 31. Rxg6+ {[%clk 0:01:28.5]} 31... Kh7 {[%clk
0:01:13.5]} 32. Rd6 {[%clk 0:01:26.6]} 32... Rg5+ {[%clk 0:01:03.7]} 33. Kf2
{[%clk 0:01:25.8]} 33... Rxh5 {[%clk 0:01:03]} 34. Rd7+ {[%clk 0:01:24.4]} 34...
Kg6 {[%clk 0:01:02.7]} 35. Rxb7 {[%clk 0:01:22.8]} 35... Kf5 {[%clk 0:01:02.4]}
36. Rb6 {[%clk 0:01:09.6]} 36... Rh2+ {[%clk 0:00:52.5]} 37. Kg3 {[%clk
0:01:08.5]} 37... Rc2 {[%clk 0:00:49.7]} 38. Rxc6 {[%clk 0:01:04.1]} 38... Rxb2
{[%clk 0:00:49.6]} 39. Rxh6 {[%clk 0:01:03.3]} 39... Rb3 {[%clk 0:00:47.5]} 40.
Rc6 {[%clk 0:00:58.7]} 40... Ra3 {[%clk 0:00:46.9]} 41. Rc5 {[%clk 0:00:50.5]}
41... Rxa4 {[%clk 0:00:43.9]} 42. Rxd5 {[%clk 0:00:49.9]} 42... Rc4 {[%clk
0:00:42.2]} 43. Rxa5 {[%clk 0:00:43.4]} 43... Rxc3+ {[%clk 0:00:42.2]} 44. Kh4
{[%clk 0:00:39.2]} 44... Rc4 {[%clk 0:00:30.5]} 45. Rd5 {[%clk 0:00:38.8]} 1-0

[Event "Early-Titled-Tuesday-Blitz-September-05-2023"]
[Site "Chess.com"]
[Date "2023.09.05"]
[Round "5"]
[White "Good_Knight_Kiss"]
[Black "PawnEatingZombie"]
[Result "1-0"]
[WhiteElo "2344"]
[BlackElo "2051"]
[TimeControl "180+1"]
[EndTime "8:54:05 PDT"]
[Termination "Good_Knight_Kiss won on time"]

1. e4 {[%clk 0:03:00.9]} 1... Nf6 {[%clk 0:02:57.9]} 2. e5 {[%clk 0:03:00.2]}
2... Nd5 {[%clk 0:02:58.3]} 3. d4 {[%clk 0:02:50.9]} 3... d6 {[%clk 0:02:58.3]}
4. c4 {[%clk 0:02:50.8]} 4... Nb6 {[%clk 0:02:57.6]} 5. exd6 {[%clk 0:02:51.5]}
5... exd6 {[%clk 0:02:56.9]} 6. Nc3 {[%clk 0:02:51]} 6... Be7 {[%clk 0:02:57.3]}
7. Nf3 {[%clk 0:02:44]} 7... Bg4 {[%clk 0:02:52.5]} 8. Be2 {[%clk 0:02:43.9]}
8... Nc6 {[%clk 0:02:51.4]} 9. b3 {[%clk 0:02:41.3]} 9... Bf6 {[%clk 0:02:38.2]}
10. Be3 {[%clk 0:02:40.1]} 10... O-O {[%clk 0:02:25.6]} 11. O-O {[%clk
0:02:39.4]} 11... Re8 {[%clk 0:02:17.3]} 12. h3 {[%clk 0:02:39.2]} 12... Bh5
{[%clk 0:02:16.4]} 13. Rc1 {[%clk 0:02:35.6]} 13... a5 {[%clk 0:01:48.6]} 14. c5
{[%clk 0:02:08.7]} 14... dxc5 {[%clk 0:01:30.6]} 15. dxc5 {[%clk 0:02:09.6]}
15... Nd7 {[%clk 0:01:20.5]} 16. g4 {[%clk 0:01:45.9]} 16... Bg6 {[%clk
0:01:19.5]} 17. Nd5 {[%clk 0:01:45.5]} 17... h6 {[%clk 0:01:03.6]} 18. Qd2
{[%clk 0:01:31.3]} 18... Nb4 {[%clk 0:00:54.7]} 19. Nxb4 {[%clk 0:01:18.7]}
19... axb4 {[%clk 0:00:53.1]} 20. Rfd1 {[%clk 0:01:07.6]} 20... Ne5 {[%clk
0:00:25.6]} 21. Qxb4 {[%clk 0:01:07.4]} 21... Qc8 {[%clk 0:00:22.9]} 22. Nxe5
{[%clk 0:00:51.5]} 22... Bxe5 {[%clk 0:00:22.7]} 23. a4 {[%clk 0:00:48.7]} 23...
h5 {[%clk 0:00:20.4]} 24. Bf3 {[%clk 0:00:42.2]} 24... c6 {[%clk 0:00:17.1]} 25.
gxh5 {[%clk 0:00:33.6]} 25... Bf5 {[%clk 0:00:15.3]} 26. Bg4 {[%clk 0:00:30]}
26... Rb8 {[%clk 0:00:03.3]} 27. Bxf5 {[%clk 0:00:28.2]} 27... Qxf5 {[%clk
0:00:02.5]} 28. Qg4 {[%clk 0:00:28.9]} 28... Qf6 {[%clk 0:00:01.8]} 29. Rd7
{[%clk 0:00:23.8]} 29... Rbd8 {[%clk 0:00:01.1]} 30. Rcd1 {[%clk 0:00:23.4]}
30... Rxd7 {[%clk 0:00:01.1]} 31. Rxd7 {[%clk 0:00:20.5]} 1-0